bitfinex/quotes_SOLUSD_20251007
["timestamp","ask_amount","ask_price","bid_price","bid_amount"]
[1759826859862,21.75275752,229.86,229.85,0.67]
[1759826860048,4.35028494,229.87,229.85,0.67]
[1759826860248,15.22676015,229.87,229.86,0.67]
[1759826860568,27.70247724,229.87,229.83,1e-08]
[1759826860744,12.47647995,229.85,229.84,0.67]
[1759826861066,12.47647995,229.85,229.83,1e-08]
[1759826861241,16.82600203,229.87,229.83,1e-08]
[1759826861643,16.82600203,229.87,229.84,0.67]
[1759826861848,16.82600203,229.87,229.85,0.67]
[1759826863862,10.87647521,229.86,229.83,1e-08]
[1759826864075,1.60000474,229.85,229.83,1e-08]
[1759826864250,1.60000474,229.85,229.83,0.67000001]
[1759826864757,12.47647995,229.84,229.83,0.67000001]
[1759826864948,10.87647521,229.84,229.83,0.67000001]
[1759826865245,12.47647995,229.84,229.83,0.67000001]
[1759826866158,16.82733271,229.84,229.83,0.67000001]
[1759826868056,17.54733271,229.84,229.83,1e-08]
[1759826868567,16.82733271,229.84,229.83,1e-08]
[1759826868768,15.22732797,229.84,229.83,0.67000001]
[1759826868981,16.82733271,229.84,229.83,0.67000001]
[1759826869476,4.35085276,229.84,229.83,0.67000001]
[1759826870175,4.35066347,229.85,229.83,0.67000001]
[1759826870973,4.35066347,229.85,229.83,1e-08]
[1759826871976,1.60000474,229.84,229.83,1e-08]
[1759826872362,5.9508575,229.84,229.83,1e-08]
[1759826873086,5.9508575,229.84,229.83,0.67000001]
[1759826874070,5.9508575,229.84,229.83,1e-08]
[1759826874274,5.9508575,229.84,229.83,0.67000001]
[1759826874880,5.9508575,229.84,229.83,1e-08]
[1759826878482,5.9508575,229.84,229.83,0.67000001]
[1759826878994,4.35085276,229.84,229.83,0.67000001]
[1759826879152,4.35085276,229.84,229.83,1e-08]
[1759826881081,4.35085276,229.84,229.83,0.67000001]
[1759826881960,4.35066347,229.85,229.83,0.67000001]
[1759826883153,1.60000474,229.84,229.83,0.67000001]
[1759826883882,13.18647995,229.84,229.83,1e-08]
[1759826884084,38.33733271,229.84,229.83,1e-08]
[1759826884664,40.07998633,229.84,229.83,1e-08]
[1759826886280,70.77998633,229.84,229.83,1e-08]
[1759826888772,70.06998633,229.84,229.83,1e-08]
[1759826890689,70.77998633,229.84,229.83,1e-08]
[1759826892794,70.06998633,229.84,229.83,1e-08]
[1759826895988,70.77998633,229.84,229.83,1e-08]
[1759826896390,37.76998159,229.84,229.83,1e-08]
[1759826896687,70.77998633,229.84,229.83,1e-08]
[1759826900392,70.06998633,229.84,229.83,1e-08]
[1759826905911,70.77998633,229.84,229.83,1e-08]
[1759826906779,70.06998633,229.84,229.83,1e-08]
[1759826908581,70.77998633,229.84,229.83,1e-08]
[1759826909801,70.06998633,229.84,229.83,1e-08]
[1759826912397,70.04998633,229.84,229.83,1e-08]
[1759826912791,39.36998633,229.84,229.83,1e-08]
[1759826912991,70.04998633,229.84,229.83,0.69000001]
[1759826913301,70.94959684,229.84,229.83,1e-08]
[1759826914012,20.8,229.8,229.79,1e-08]
[1759826914186,67.35570571,229.8,229.79,1e-08]
[1759826914498,64.85609046,229.8,229.79,1e-08]
[1759826914680,66.59904782,229.8,229.79,1e-08]
[1759826915001,70.95065791,229.8,229.79,1e-08]
[1759826923083,68.45104266,229.8,229.79,1e-08]
[1759826923396,70.95065791,229.8,229.79,1e-08]
[1759826923603,70.93065791,229.8,229.79,1e-08]
[1759826924586,31.67647521,229.77,229.76,1e-08]
[1759826924911,10.87647521,229.76,229.75,1e-08]
[1759826925589,13.37609046,229.76,229.75,1e-08]
[1759826925799,15.11942764,229.76,229.75,1e-08]
[1759826926201,19.47179532,229.76,229.75,1e-08]
[1759826929510,50.13179532,229.76,229.75,1e-08]
[1759826929715,6.09570486,229.76,229.75,0.66000001]
[1759826929891,4.35236768,229.76,229.75,0.66000001]
[1759826934622,17.73173389,229.78,229.75,0.66000001]
[1759826935201,2.49961525,229.76,229.75,0.66000001]
[1759826935385,2.49961525,229.76,229.75,1e-08]
[1759826935906,2.49961525,229.76,229.75,0.66000001]
[1759826936616,2.49961525,229.77,229.75,0.66000001]
[1759826936796,4.35236768,229.76,229.75,0.66000001]
[1759826938220,6.85198293,229.76,229.75,0.66000001]
[1759826939087,4.35236768,229.76,229.75,0.66000001]
[1759826940829,17.72845814,229.76,229.75,1e-08]
[1759826940995,18.40845814,229.76,229.75,1e-08]
[1759826941195,20.15171934,229.76,229.75,1e-08]
[1759826941619,20.8,229.74,229.73,1e-08]
[1759826941817,64.81609046,229.74,229.73,1e-08]
[1759826942019,65.52609046,229.74,229.73,1e-08]
[1759826942321,65.52609046,229.74,229.71,1e-08]
[1759826942322,34.17609046,229.72,229.71,1e-08]
[1759826942511,64.81609046,229.72,229.71,1e-08]
[1759826942712,65.52609046,229.72,229.71,1e-08]
[1759826943010,71.62285715,229.72,229.71,1e-08]
[1759826944721,70.91285715,229.72,229.71,1e-08]
[1759826945120,71.62285715,229.72,229.71,1e-08]
[1759826947017,70.91285715,229.72,229.71,1e-08]
[1759826947232,71.62285715,229.72,229.71,1e-08]
[1759826949218,68.4132419,229.72,229.71,1e-08]
[1759826949531,70.91285715,229.72,229.71,1e-08]
[1759826949834,71.62285715,229.72,229.71,1e-08]
[1759826950910,71.62285715,229.72,229.67,0.2]
[1759826950911,31.67647521,229.68,229.67,0.2]
[1759826952015,37.77415205,229.68,229.67,0.2]
[1759826953330,68.41415205,229.68,229.67,0.2]
[1759826953538,66.67035887,229.68,229.67,0.2]
[1759826954034,66.67035887,229.68,229.67,0.92]
[1759826954232,69.16997412,229.68,229.67,0.2]
[1759826954736,70.9137673,229.68,229.67,0.2]
[1759826955339,71.6237673,229.68,229.67,1e-08]
[1759826956523,70.9137673,229.68,229.67,1e-08]
[1759826957162,37.77415205,229.68,229.67,1e-08]
[1759826957323,70.9137673,229.68,229.67,1e-08]
[1759826959931,71.6237673,229.68,229.67,1e-08]
[1759826960136,70.9137673,229.68,229.67,1e-08]
[1759826964429,71.6237673,229.68,229.67,1e-08]
[1759826964634,70.9137673,229.68,229.67,1e-08]
[1759826967457,37.77415205,229.68,229.67,0.72000001]
[1759826967647,66.67035887,229.68,229.67,0.72000001]
[1759826967952,69.16997412,229.68,229.67,1e-08]
[1759826968530,69.16997412,229.68,229.67,0.72000001]
[1759826970161,4.35388366,229.68,229.67,0.72000001]
[1759826970340,4.35312554,229.72,229.67,0.72000001]
[1759826971359,4.35293605,229.73,229.67,0.72000001]
[1759826974267,4.35293605,229.73,229.67,5.07397828]
[1759826974441,4.35293605,229.73,229.68,0.71]
[1759826975258,1.60050536,229.75,229.68,0.71]
[1759826975559,5.95287304,229.76,229.68,0.71]
[1759826976065,4.35236768,229.76,229.68,5.06386797]
[1759826976271,4.35236768,229.76,229.69,0.71]
[1759826976859,1.60050536,229.73,229.69,0.71]
[1759826977238,4.35236768,229.76,229.69,5.06363877]
[1759826977443,4.35236768,229.76,229.7,0.71]
[1759826977743,20.8,229.77,229.7,0.71]
[1759826979346,25.15221147,229.77,229.7,0.71]
[1759826979559,25.15221147,229.77,229.7,5.06349687]
[1759826979862,25.15221147,229.77,229.71,0.72]
[1759826980454,4.35198885,229.78,229.71,5.07323255]
[1759826980662,4.35198885,229.78,229.72,0.72]
[1759826982562,15.23086575,229.8,229.72,5.0731127]
[1759826982765,4.35161009,229.8,229.73,0.72]
[1759826982970,0.66,229.86,229.74,30.62]
[1759826983146,4.35066347,229.85,229.75,0.72]
[1759826984285,4.35066347,229.85,229.76,4.35236768]
[1759826984587,15.22732216,229.85,229.77,0.72]
[1759826984878,2.26050536,229.84,229.77,0.72]
[1759826985078,0.66,229.84,229.77,0.72]
[1759826985270,2.26050536,229.84,229.77,0.72]
[1759826986176,4.35104207,229.83,229.77,0.72]
[1759826986566,11.53647521,229.86,229.77,5.07214376]
[1759826986768,1.60050536,229.85,229.78,0.72]
[1759826987071,2.26050536,229.85,229.78,0.72]
[1759826987774,0.66,229.85,229.78,0.72]
[1759826987972,2.26050536,229.85,229.78,0.72]
[1759826988364,4.35085276,229.84,229.78,0.72]
[1759826988556,5.01085276,229.84,229.78,0.72]
[1759826990267,4.35085276,229.84,229.78,5.07195993]
[1759826990472,4.35085276,229.84,229.79,0.72]
[1759826990776,4.35085276,229.84,229.8,0.72]
[1759826991460,5.01085276,229.84,229.8,0.72]
[1759826993856,0.66,229.83,229.79,30.6]
[1759826994371,0.66,229.83,229.79,31.32]
[1759826995183,15.22798467,229.84,229.79,31.32]
[1759826995589,15.88798467,229.84,229.79,31.32]
[1759826995766,15.88798467,229.84,229.79,30.6]
[1759826995966,15.22798467,229.84,229.8,0.72]
[1759826996169,15.88798467,229.84,229.8,0.72]
[1759826996381,15.88798467,229.84,229.79,30.6]
[1759826996382,0.66,229.83,229.79,30.6]
[1759826996683,0.66,229.83,229.8,30.58]
[1759826997389,16.82849003,229.84,229.8,30.58]
[1759826997573,15.88798467,229.84,229.8,30.58]
[1759826998271,4.35085276,229.84,229.81,0.72]
[1759826999089,5.01085276,229.84,229.8,31.3]
[1759826999471,0.66,229.83,229.8,30.58]
[1759826999674,0.66,229.82,229.81,30.58]
[1759826999980,4.35142073,229.81,229.79,30.58]
[1759827000289,10.87573554,229.87,229.8,0.72]
[1759827000583,5.95097956,229.86,229.8,0.72]
[1759827000961,0.66,229.85,229.8,0.72]
[1759827001175,0.66,229.84,229.8,0.72]
[1759827001579,4.3504742,229.86,229.81,0.68]
[1759827001960,4.35028494,229.87,229.81,0.68]
[1759827002163,5.04028494,229.87,229.81,0.68]
[1759827002374,6.6407903,229.87,229.81,0.68]
[1759827002574,1.60050536,229.85,229.78,0.68]
[1759827002867,0.69,229.84,229.79,30.58]
[1759827003068,0.69,229.83,229.79,30.58]
[1759827003274,0.69,229.83,229.79,31.26]
[1759827003592,2.29050536,229.85,229.79,31.26]
[1759827003885,12.47698057,229.84,229.79,30.58]
[1759827004190,12.47698057,229.84,229.61,132.7]
[1759827004191,1.60050536,229.82,229.76,0.68]
[1759827004486,1.60050536,229.82,229.77,30.58]
[1759827004487,2.29050536,229.82,229.77,30.58]
[1759827004683,0.69,229.81,229.77,30.58]
[1759827005086,0.69,229.8,229.77,30.58]
[1759827005384,0.69,229.8,229.72,20.8]
[1759827005385,1.60050536,229.78,229.72,31.26]
[1759827005584,1.60050536,229.77,229.72,31.26]
[1759827005799,2.29050536,229.77,229.72,31.26]
[1759827006005,4.35255712,229.75,229.72,30.58]
[1759827006288,31.67647521,229.8,229.72,30.58]
[1759827006289,1.60050536,229.78,229.73,0.68]
[1759827006512,4.35179946,229.79,229.73,0.68]
[1759827006658,4.35159388,229.81,229.73,0.68]
[1759827006962,4.35066347,229.85,229.73,0.68]
[1759827007365,15.22737518,229.85,229.73,0.68]
[1759827007675,4.35066347,229.85,229.75,20.8]
[1759827007876,4.35066347,229.85,229.76,0.68]
[1759827008391,2.29050536,229.88,229.77,4.35217826]
[1759827008392,4.35028494,229.87,229.77,4.35217826]
[1759827008565,4.35028494,229.87,229.78,31.26]
[1759827008765,4.35028494,229.87,229.79,0.68]
[1759827010394,22.54056827,229.91,229.8,4.35161009]
[1759827010395,13.26459842,229.91,229.8,4.35161009]
[1759827010579,13.26459842,229.91,229.81,0.68]
[1759827011184,4.34971726,229.9,229.81,0.68]
[1759827011407,5.03971726,229.9,229.81,5.03132373]
[1759827011564,5.03971726,229.9,229.82,0.68]
[1759827012887,17.51451579,229.9,229.82,0.68]
[1759827013678,17.51451579,229.9,229.82,5.03122816]
[1759827014070,15.22401043,229.9,229.83,0.68]
[1759827014395,0.1,229.91,229.84,30.56]
[1759827014713,0.1,229.91,229.85,0.68]
[1759827014887,0.1,229.91,229.86,4.3504742]
[1759827015095,0.1,229.91,229.87,0.68]
[1759827016594,0.1,229.91,229.87,21.48]
[1759827016802,5.13961563,229.91,229.86,0.68]
[1759827016972,5.13961563,229.91,229.88,30.56]
[1759827017167,0.69,229.9,229.87,30.56]
[1759827017368,0.69,229.89,229.87,30.56]
[1759827017610,15.32343582,229.91,229.87,30.56]
[1759827017908,16.01343582,229.91,229.87,30.56]
[1759827018101,0.69,229.9,229.87,30.56]
[1759827018806,4.34975184,229.9,229.87,30.56]
[1759827018983,4.34975184,229.9,229.87,31.24]
[1759827019175,4.34975184,229.9,229.85,0.68]
[1759827019378,4.34975184,229.9,229.86,30.56]
[1759827019684,4.34975184,229.9,229.86,31.24]
[1759827020793,4.34975184,229.9,229.86,30.56]
[1759827020984,4.34975184,229.9,229.87,0.68]
[1759827021490,4.34975184,229.9,229.88,0.68]
[1759827021871,4.44953497,229.91,229.88,0.68]
[1759827022609,0.69,229.9,229.84,0.68]
[1759827022902,0.69,229.9,229.85,30.56]
[1759827022903,2.29050536,229.9,229.85,30.56]
[1759827023077,0.69,229.89,229.85,30.56]
[1759827023275,5.0400576,229.89,229.85,30.56]
[1759827023694,5.0400576,229.89,229.85,31.24]
[1759827024494,4.3500576,229.89,229.85,31.24]
[1759827025305,0.1,229.91,229.86,0.68]
[1759827026104,0.1,229.91,229.87,30.56]
[1759827026397,0.1,229.91,229.88,0.68]
[1759827027203,0.1,229.91,229.89,4.34990647]
[1759827027389,0.1,229.91,229.9,0.68]
[1759827031494,0.1,229.91,229.9,5.02971726]
[1759827031713,0.1,229.91,229.9,0.68]
[1759827033808,0.1,229.91,229.9,5.02971726]
[1759827035986,0.1,229.91,229.9,0.68]
[1759827037113,0.1,229.91,229.9,31.22]
[1759827037482,0.1,229.91,229.9,35.56971726]
[1759827038910,0.1,229.91,229.9,5.02971726]
[1759827039206,0.1,229.91,229.9,35.56971726]
[1759827043617,0.1,229.91,229.9,30.54]
[1759827043823,5.15955752,229.91,229.83,0.68]
[1759827044110,0.71,229.9,229.84,17.04]
[1759827044617,0.71,229.89,229.84,17.04]
[1759827044795,2.49554045,229.9,229.84,17.04]
[1759827044992,0.71,229.88,229.84,17.04]
[1759827045309,0.71,229.87,229.84,17.04]
[1759827046804,0.71,229.86,229.84,17.04]
[1759827047107,0.71,229.85,229.84,17.04]
[1759827047311,10.87647521,229.84,229.74,5.03266261]
[1759827047492,2.49554045,229.82,229.75,30.54]
[1759827047688,4.35217826,229.77,229.75,30.54]
[1759827048008,3.20554045,229.77,229.75,30.54]
[1759827048402,0.71,229.76,229.75,30.54]
[1759827048992,3.20554045,229.76,229.75,30.54]
[1759827050018,5.06236768,229.76,229.75,30.54]
[1759827050319,2.49554045,229.77,229.75,30.54]
[1759827050502,3.20554045,229.77,229.75,30.54]
[1759827050699,7.55784158,229.77,229.75,30.54]
[1759827050906,3.20554045,229.76,229.75,30.54]
[1759827052094,7.55790813,229.76,229.75,30.54]
[1759827053016,10.87647521,229.75,229.67,1e-08]
[1759827053190,2.49554045,229.7,229.67,1e-08]
[1759827053392,2.49554045,229.7,229.68,30.54]
[1759827053603,2.49554045,229.69,229.68,30.54]
[1759827054023,6.84923455,229.69,229.68,30.54]
[1759827054616,2.49554045,229.69,229.68,30.54]
[1759827055192,2.49554045,229.7,229.68,30.54]
[1759827055796,10.87647521,229.75,229.68,30.54]
[1759827055996,4.35198885,229.78,229.7,4.35350457]
[1759827056215,2.49554045,229.77,229.71,0.68]
[1759827056403,2.49554045,229.77,229.72,30.56]
[1759827056605,2.49554045,229.76,229.72,30.56]
[1759827057123,2.49554045,229.76,229.72,31.24]
[1759827057618,2.49554045,229.73,229.72,30.56]
[1759827058124,2.49554045,229.74,229.72,30.56]
[1759827058308,0.71,229.75,229.72,30.56]
[1759827058513,6.84815332,229.75,229.72,30.56]
[1759827059721,2.49554045,229.73,229.72,30.56]
[1759827061222,3.17554045,229.73,229.72,30.56]
[1759827061404,3.17554045,229.73,229.7,30.56]
[1759827061606,15.23400568,229.75,229.7,30.56]
[1759827061607,6.84885549,229.71,229.7,30.56]
[1759827061809,7.52885549,229.71,229.7,30.56]
[1759827062220,18.41214311,229.71,229.67,1e-08]
[1759827062426,2.49554045,229.68,229.67,1e-08]
[1759827063027,10.87647521,229.7,229.67,1e-08]
[1759827063414,2.49554045,229.68,229.67,1e-08]
[1759827063726,6.84942411,229.68,229.67,1e-08]
[1759827064226,7.52942411,229.68,229.67,1e-08]
[1759827065705,6.84942411,229.68,229.67,1e-08]
[1759827066210,2.49554045,229.68,229.67,1e-08]
[1759827067512,6.84942411,229.68,229.67,1e-08]
[1759827067942,6.849244,229.69,229.67,0.71000001]
[1759827068259,2.49554045,229.68,229.67,1e-08]
[1759827068606,6.849244,229.69,229.67,1e-08]
[1759827069519,2.49554045,229.68,229.67,1e-08]
[1759827069842,6.84942411,229.68,229.67,1e-08]
[1759827073289,4.35388366,229.68,229.67,1e-08]
[1759827073447,6.84942411,229.68,229.67,1e-08]
[1759827073652,7.52942411,229.68,229.67,1e-08]
[1759827077626,4.35388366,229.68,229.67,1e-08]
[1759827077825,6.84942411,229.68,229.67,1e-08]
[1759827078231,7.52942411,229.68,229.67,1e-08]
[1759827079422,15.23016759,229.7,229.67,1e-08]
[1759827079625,11.56215821,229.74,229.67,0.71000001]
[1759827079824,2.49554045,229.68,229.67,0.71000001]
[1759827080249,2.49554045,229.68,229.67,1e-08]
[1759827081249,6.84942411,229.68,229.67,1e-08]
[1759827082956,4.35371276,229.69,229.67,0.71000001]
[1759827083137,6.84925321,229.69,229.68,0.71]
[1759827084058,6.84823916,229.75,229.68,5.06384908]
[1759827084239,6.84823916,229.75,229.69,0.71]
[1759827085246,2.49554045,229.76,229.69,5.06361808]
[1759827085431,2.49554045,229.76,229.7,0.71]
[1759827085629,2.49554045,229.77,229.7,0.71]
[1759827085836,4.12224368,229.78,229.71,30.56]
[1759827086041,4.12224368,229.78,229.72,0.71]
[1759827086563,4.35165759,229.8,229.72,0.71]
[1759827086857,4.35165759,229.8,229.71,30.56]
[1759827086858,2.49554045,229.76,229.71,30.56]
[1759827087041,20.8,229.79,229.72,0.71]
[1759827087238,6.84776313,229.77,229.72,0.71]
[1759827087439,2.49554045,229.76,229.71,30.56]
[1759827087651,2.49554045,229.76,229.72,0.71]
[1759827087861,2.49554045,229.76,229.73,0.71]
[1759827088060,4.35199016,229.78,229.74,0.71]
[1759827088368,2.49554045,229.77,229.75,0.71]
[1759827088851,2.49554045,229.77,229.73,0.71]
[1759827089071,2.49554045,229.77,229.74,0.71]
[1759827089072,6.84782563,229.77,229.74,0.71]
[1759827089950,6.84782563,229.77,229.75,0.71]
[1759827090350,4.35198885,229.78,229.76,0.71]
[1759827090571,4.35198885,229.78,229.72,4.35304953]
[1759827090785,4.35198885,229.78,229.77,0.71]
[1759827091479,23.29554045,229.8,229.77,0.71]
[1759827091842,23.29554045,229.8,229.72,4.35304953]
[1759827092059,23.29554045,229.8,229.77,0.7]
[1759827092267,4.35181225,229.79,229.77,0.7]
[1759827092584,0.69,229.85,229.78,0.7]
[1759827092782,2.49554045,229.84,229.78,31.26]
[1759827092975,2.49554045,229.84,229.79,0.7]
[1759827093288,2.49554045,229.9,229.79,0.7]
[1759827093289,10.87494381,229.89,229.79,0.7]
[1759827093481,2.59554045,229.91,229.79,0.7]
[1759827093655,6.94522156,229.91,229.79,0.7]
[1759827094353,6.94522156,229.91,229.8,4.35161009]
[1759827094653,2.49554045,229.9,229.81,0.7]
[1759827095060,1.59834207,229.9,229.81,0.7]
[1759827095689,4.34990647,229.89,229.81,5.05126325]
[1759827095888,4.34990647,229.89,229.82,0.7]
[1759827096055,4.44955137,229.91,229.82,0.7]
[1759827096252,1.59834207,229.9,229.82,0.7]
[1759827097961,4.34990647,229.89,229.82,5.05122806]
[1759827098172,4.34990647,229.89,229.83,0.69]
[1759827098480,4.34990647,229.89,229.84,30.56]
[1759827098657,1.59834207,229.9,229.85,0.69]
[1759827098980,1.59834207,229.9,229.86,0.69]
[1759827099454,5.94808126,229.9,229.86,0.69]
[1759827100066,4.34973919,229.9,229.87,0.69]
[1759827101054,4.34973919,229.9,229.84,30.56]
[1759827101258,5.94808126,229.9,229.85,0.69]
[1759827101769,6.64808126,229.9,229.85,0.69]
[1759827102073,1.59834207,229.89,229.85,0.69]
[1759827102683,4.34973919,229.9,229.84,30.56]
[1759827102887,0.1,229.91,229.86,0.69]
[1759827103072,0.7,229.9,229.84,30.56]
[1759827103274,2.29834207,229.9,229.84,31.25]
[1759827103473,6.6482213,229.9,229.84,31.25]
[1759827105477,4.3500957,229.88,229.85,0.69]
[1759827105680,4.35000995,229.89,229.85,0.69]
[1759827105889,4.35000995,229.89,229.86,0.69]
[1759827107493,1.59834207,229.88,229.84,30.56]
[1759827107677,1.59834207,229.86,229.8,0.69]
[1759827107984,15.22401043,229.9,229.81,30.54]
[1759827108192,1.59834207,229.86,229.81,31.23]
[1759827108379,0.7,229.89,229.82,0.69]
[1759827108380,1.59834207,229.87,229.82,0.69]
[1759827108568,2.29834207,229.87,229.82,0.69]
[1759827109486,5.94878507,229.87,229.83,0.69]
[1759827109689,6.64878507,229.87,229.81,31.23]
[1759827109981,5.94878507,229.87,229.82,0.69]
[1759827110182,4.35007381,229.89,229.82,0.69]
[1759827110672,5.94841588,229.89,229.82,0.69]
[1759827111082,4.35007381,229.89,229.82,0.69]
[1759827111470,4.3497319,229.9,229.83,4.35104207]
[1759827111674,4.3497319,229.9,229.84,0.69]
[1759827112386,0.1,229.91,229.84,21.49]
[1759827112387,4.44953637,229.91,229.84,21.49]
[1759827112611,4.44953637,229.91,229.85,0.69]
[1759827112796,4.44953637,229.91,229.86,30.54]
[1759827113112,4.44953637,229.91,229.87,0.69]
[1759827113986,6.04787844,229.91,229.87,0.69]
[1759827114490,0.7,229.9,229.86,30.54]
[1759827114710,2.29834207,229.89,229.86,30.54]
[1759827115015,1.59834207,229.89,229.86,30.54]
[1759827116022,4.34997599,229.89,229.86,30.54]
[1759827116189,5.94831806,229.89,229.86,30.54]
[1759827116799,6.64831806,229.89,229.86,30.54]
[1759827117119,5.94831806,229.89,229.86,30.54]
[1759827117803,5.94831806,229.89,229.86,31.23]
[1759827118208,4.34997599,229.89,229.86,31.23]
[1759827118404,5.14968023,229.91,229.86,30.54]
[1759827118604,1.59834207,229.9,229.87,0.69]
[1759827118895,6.0480223,229.91,229.88,0.69]
[1759827119811,6.0480223,229.91,229.86,30.54]
[1759827119993,6.7480223,229.91,229.86,31.23]
[1759827120490,1.59834207,229.9,229.86,31.23]
[1759827120689,1.59834207,229.89,229.86,31.23]
[1759827120908,5.14968023,229.91,229.86,31.23]
[1759827121209,0.1,229.91,229.87,0.69]
[1759827122103,0.1,229.91,229.87,5.04016521]
[1759827122305,0.1,229.91,229.88,0.66]
[1759827122694,0.1,229.91,229.89,0.66]
[1759827123020,0.1,229.91,229.9,30.54]
[1759827123798,6.04787014,229.91,229.9,30.54]
[1759827125831,4.44952807,229.91,229.9,30.54]
[1759827126023,0.1,229.91,229.9,31.2]
[1759827127519,0.1,229.91,229.9,35.54971726]
[1759827131098,0.1,229.91,229.9,31.2]
[1759827132029,0.1,229.91,229.9,30.54]
[1759827132711,0.1,229.91,229.9,31.2]
[1759827133718,0.1,229.91,229.9,35.54971726]
[1759827134720,0.1,229.91,229.9,46.42619247]
[1759827136027,0.1,229.91,229.9,35.54971726]
[1759827137402,0.1,229.91,229.9,46.42619247]
[1759827140238,1e-08,229.91,229.9,46.42619247]
[1759827141426,1e-08,229.91,229.9,51.2943692]
[1759827141634,1e-08,229.91,229.9,46.42619247]
[1759827141942,1e-08,229.91,229.9,51.28292476]
[1759827142237,1e-08,229.91,229.9,46.42619247]
[1759827142938,1e-08,229.91,229.9,51.28292476]
[1759827143106,1e-08,229.91,229.9,46.42619247]
[1759827144739,1e-08,229.91,229.9,51.28292476]
[1759827145135,1e-08,229.91,229.9,53.023228]
[1759827146243,1e-08,229.91,229.9,48.16649571]
[1759827147440,0.1,229.99,229.94,31.67647521]
[1759827147619,1e-08,229.99,229.98,31.67647521]
[1759827147819,1e-08,229.99,229.98,62.19647521]
[1759827148018,1e-08,229.99,229.98,64.59647564]
[1759827148645,1e-08,229.99,229.98,68.94467983]
[1759827148816,1e-08,229.99,229.98,69.37950024]
[1759827149746,0.1,230.0,229.98,69.37950024]
[1759827149747,1e-08,230.0,229.98,69.37950024]
[1759827150055,1e-08,230.0,229.99,0.66]
[1759827150223,1e-08,230.0,229.99,11.53647521]
[1759827150744,1e-08,230.0,229.99,15.88449034]
[1759827152628,1e-08,230.0,229.99,28.68202778]
[1759827153841,0.1,230.07,230.04,10.87647521]
[1759827154048,0.1,230.07,230.05,30.5]
[1759827154249,0.1,230.07,230.05,31.21]
[1759827154548,0.1,230.07,230.06,0.71]
[1759827154922,0.1,230.07,230.06,25.14669216]
[1759827155445,0.1,230.07,230.06,36.02316737]
[1759827157047,0.79,230.07,230.06,55.64669216]
[1759827157948,0.79,230.07,230.06,51.3]
[1759827158125,0.79,230.07,230.06,55.64669216]
[1759827158835,0.79,230.07,230.06,51.3]
[1759827159226,0.79,230.07,230.06,55.64669216]
[1759827160250,0.1,230.07,230.06,55.64669216]
[1759827161029,0.1,230.07,230.06,67.24316737]
[1759827163038,0.1,230.07,230.06,55.64669216]
[1759827163443,0.1,230.07,230.06,67.24316737]
[1759827164258,0.1,230.07,230.06,66.52316737]
[1759827166153,0.1,230.07,230.06,55.64669216]
[1759827166330,0.1,230.07,230.06,25.14669216]
[1759827166530,0.79,230.07,230.06,20.8]
[1759827166730,0.79,230.07,230.06,51.3]
[1759827167435,0.79,230.07,230.06,30.5]
[1759827167649,0.79,230.07,230.03,20.8]
[1759827167865,0.69,230.06,230.04,30.5]
[1759827168071,0.69,230.06,229.97,4.34839326]
[1759827168072,0.69,230.05,229.97,4.34839326]
[1759827168274,3.40899351,230.04,229.98,30.5]
[1759827168432,2.71899351,230.0,229.92,4.3493389]
[1759827168634,0.69,229.99,229.93,30.5]
[1759827168860,0.69,229.98,229.93,30.5]
[1759827169062,3.40899351,229.97,229.93,30.5]
[1759827169360,0.69,229.96,229.93,30.5]
[1759827169558,2.71899351,230.04,229.93,30.5]
[1759827169559,3.40899351,229.95,229.93,30.5]